[Event "USA Championship Women 2022"]
[Site "Saint Louis"]
[Date "2022.10.08"]
[Round "4.7"]
[White "Paikidze, Nazi"]
[Black "Tokhirjonova, Gulrukhbegim"]
[Result "1/2-1/2"]
[ECO "D77"]
[WhiteElo "2354"]
[BlackElo "2336"]
[Annotator "TA"]
[PlyCount "89"]
[EventDate "2022.09.05"]
[EventType "tourn"]
[EventCountry "USA"]
[SourceTitle "playchess.com"]
[Source "ChessBase"]
[SourceQuality "1"]
[TimeControl "40/5400+30:1800+30"]

{[%evp 13,89,27,13,18,16,12,20,30,22,35,31,20,61,52,87,114,93,8,0,0,3,11,43,39,50,31,38,16,0,9,42,39,39,0,0,-11,0,0,0,0,0,0,0,0,0,0,0,0,0,0,0,0,0,0,14,15,17,16,101,100,172,70,87,34,964,920,790,0,0,0,0,0,0,0,0,0,0,0]} 1. d4 {[%emt 0:00:02]} Nf6 {[%emt 0:01:53]} 2. c4 {[%emt 0:00:05]} g6 {[%emt 0:00:17]} 3. g3 {[%emt 0:00:06]} Bg7 {[%emt 0:00:47]} 4. Bg2 {[%emt 0:00:06]} d5 {[%emt 0:00:55]} 5. Nf3 {[%emt 0:00:08]} O-O {[%emt 0:00:45]} 6. O-O {[%emt 0:00:14]} dxc4 {[%emt 0:04:47]} 7. Na3 {[%emt 0:01:08]} a5 {[%emt 0:04:21] 7...c5 gains popularity.} 8. Ne5 {[%emt 0:04:07] D77: Fianchetto Grünfeld: 6 0-0: Replies other than 6...c6.} c6 {[%emt 0:09:29][%cal Bc7c6,Bc6c5][%mdl 32]} 9. Naxc4 {[%emt 0:02:26]} a4 {[%emt 0:01:10] [#]} 10. e4 $146 {[%emt 0:05:34]} ({Predecessor:} 10. Qc2 b5 11. Na3 Qxd4 12. Nxc6 Nxc6 13. Be3 Qg4 14. Qxc6 Bd7 15. Qc5 Rac8 16. Bf3 {0-1 (47) Wang,Y (2448)-Li,C (2683) Liaocheng 2021}) 10... Nbd7 {[%emt 0:01:42]} 11. f4 {[%emt 0:12:21]} Nb6 {[%emt 0:02:54]} 12. Ne3 {[%emt 0:04:45]} Nfd7 {[%emt 0:05:25]} 13. Qc2 {[%emt 0:08:03]} c5 {[%emt 0:14:31]} 14. Nxd7 {[%emt 0:04:39]} Nxd7 {[%emt 0:00:45]} 15. d5 {[%emt 0:02:22]} (15. dxc5 $16 {aiming for e5.} Bd4 16. Rd1) 15... Bd4 $11 {[%emt 0:03:19]} 16. Rb1 {[%emt 0:05:14]} Nf6 {[%emt 0:04:42]} 17. Kh1 {[%emt 0:01:16]} e6 {[%emt 0:12:09]} 18. d6 {[%emt 0:02:26]} Nd7 {[%emt 0:08:52]} (18... Qxd6 $2 19. e5 Qe7 20. exf6 Qxf6 21. Ng4 $18) 19. b4 {[%emt 0:05:15]} axb3 $1 {[%emt 0:01:58]} 20. Qxb3 {[%emt 0:02:02]} b5 {[%emt 0:01:25]} 21. Nc2 {[%emt 0:02:38]} (21. Qxb5 Ba6 22. Qc6 Bxf1 23. Nxf1 Rxa2 $17) 21... Bg7 {[%emt 0:03:52]} 22. e5 {[%emt 0:02:17]} (22. Qxb5 $2 Rb8 23. Qxb8 Nxb8 24. Rxb8 Qxd6 $19) 22... Rb8 {[%emt 0:00:19]} 23. Bd2 {[%emt 0:17:52]} Bb7 {[%emt 0:01:27]} 24. a4 {[%emt 0:02:14]} Bxg2+ {[%emt 0:04:30]} 25. Kxg2 {[%emt 0:00:01]} b4 {[%emt 0:00:08]} 26. Ne3 {[%emt 0:00:50]} Qb6 {[%emt 0:00:50]} 27. Nc4 {[%emt 0:01:34]} Qc6+ {[%emt 0:00:06]} 28. Kg1 {[%emt 0:00:47]} Ra8 {[%emt 0:02:47]} 29. a5 {[%emt 0:00:39]} f6 $1 {[%emt 0:00:12][%cal Rf6e5]} 30. Nb6 $36 {[%emt 0:04:19][%mdl 2048] White has good play.} Nxb6 {[%emt 0:01:02]} 31. Qxe6+ {[%emt 0:00:44]} Kh8 {[%emt 0:00:08]} 32. axb6 {[%emt 0:00:14]} fxe5 $1 {[%emt 0:02:58]} 33. fxe5 {[%emt 0:02:53]} Rfe8 {[%emt 0:00:08]} 34. Qc4 {[%emt 0:00:24]} Rxe5 {[%emt 0:01:28] ...Re4 is the strong threat.} (34... Bxe5 $2 35. Be3 $18) 35. Rxb4 {[%emt 0:02:31] Threatens to win with Bc3.} Rd5 {[%emt 0:03:10] [#]} (35... Qxd6 $11 36. Rb2 Re7) 36. Be3 $1 $16 {[%emt 0:01:46]} Qxd6 {[%emt 0:01:42]} (36... Rd4 $16 37. b7 Rb8) 37. b7 {[%emt 0:01:36]} ({White should play} 37. Rb5 $18 {Strongly threatening b7.} Rd1 38. Rb1 (38. Bxc5 Rxf1+ 39. Kxf1 Qc6 $11) (38. Rxc5 Rf8 $17) 38... Rxf1+ 39. Kxf1 (39. Qxf1 Bd4 $14)) 37... Rb8 $14 {[%emt 0:00:07]} 38. Rb5 {[%emt 0:01:27]} (38. Rbb1 $16) 38... Bd4 $2 {[%emt 0:01:54][%mdl 8192]} (38... h5 $14) 39. Bxd4+ $18 {[%emt 0:00:04]} Rxd4 {[%emt 0:00:05]} 40. Qf7 $2 {[%emt 0:00:27]} (40. Qc3 $18) 40... Rd2 $11 {[%emt 0:00:53] The position is equal.} 41. Qf3 {[%emt 0:17:59] [#] Hoping for Qc3+. Active counter play!} Kg7 {[%emt 0:06:50]} 42. Qf7+ {[%emt 0:06:32]} Kh8 {[%emt 0:00:22]} 43. Qf3 {[%emt 0:00:35] Chess con chili.} Kg7 {[%emt 0:00:07]} 44. Qf7+ {[%emt 0:00:42]} Kh8 {[%emt 0:00:07]} 45. Qf3 {[%emt 0:00:09] Weighted Error Value: White=0.20 (precise) /Black=0.11 (very precise)} 1/2-1/2

[Event "USA Championship Women 2022"]
[Site "Saint Louis"]
[Date "2022.10.09"]
[Round "5.1"]
[White "Yan, Ruiyang"]
[Black "Wu, Rochelle"]
[Result "0-1"]
[ECO "B69"]
[WhiteElo "2220"]
[BlackElo "2317"]
[Annotator "TA"]
[PlyCount "102"]
[EventDate "2022.09.05"]
[EventType "tourn"]
[EventCountry "USA"]
[SourceTitle "playchess.com"]
[Source "ChessBase"]
[SourceQuality "1"]
[TimeControl "40/5400+30:1800+30"]

{[%evp 22,102,52,48,52,31,41,22,29,34,47,43,43,21,39,0,0,-40,-37,-35,-46,-54,-45,-75,-62,-75,-47,-48,-16,-25,0,0,0,2,54,0,-16,-33,0,-20,-15,-24,0,0,0,-10,0,-41,-42,-41,-22,-66,-41,-78,-19,-19,-29,-55,-29,-104,-40,-54,0,-388,-326,-572,-572,-566,-565,-546,-535,-29975,-29976,-29973,-29975,-29978,-29979,-29979,-29980,-29980,-29981,-29974,-29953]} 1. e4 {[%emt 0:00:04]} c5 {[%emt 0:00:11]} 2. Nf3 {[%emt 0:00:12]} d6 {[%emt 0:00:12]} 3. d4 {[%emt 0:00:08]} cxd4 {[%emt 0:00:13]} 4. Nxd4 {[%emt 0:00:07]} Nf6 {[%emt 0:00:08]} 5. Nc3 {[%emt 0:00:14]} Nc6 {[%emt 0:00:16]} 6. Bg5 {[%emt 0:00:09]} e6 {[%emt 0:00:15]} 7. Qd2 {[%emt 0:00:11]} a6 {[%emt 0:00:31]} 8. O-O-O {[%emt 0:00:08]} Bd7 {[%emt 0:00:06]} 9. f4 {[%emt 0:00:07]} Be7 {[%emt 0:02:59]} 10. Nf3 {[%emt 0:00:14]} b5 {[%emt 0:00:08]} 11. Bxf6 {[%emt 0:00:45]} gxf6 {[%emt 0:00:07]} 12. Kb1 {[%emt 0:01:48]} Qb6 {[%emt 0:00:11] B69: Sicilian: Richter-Rauzer: 7...a6 8 0-0-0 Bd7 9 f4 Be7 10 Nf3 b5 11 Bxf6.} 13. Ne2 {[%emt 0:00:07][%cal Of4f5]} O-O-O {[%emt 0:00:31][%cal Od6d5]} 14. f5 {[%emt 0:00:06]} Kb8 {[%emt 0:10:19] The position is equal.} 15. Nf4 {[%emt 0:00:29]} Rhe8 {[%emt 0:10:07]} 16. Bd3 {[%emt 0:02:06]} Ne5 {[%emt 0:01:41]} 17. Qe2 {[%emt 0:03:19] [#]} Rc8 $146 {[%emt 0:08:12]} ({Predecessor:} 17... Nxd3 18. Qxd3 d5 19. e5 Qc7 20. Rhe1 fxe5 21. Nxe5 Bd6 22. Qd4 Bc8 23. fxe6 fxe6 {½-½ (62) Hong,A (2428)-Jacobson,B (2470) Charlotte 2020}) 18. Nd2 {[%emt 0:22:11]} a5 {[%emt 0:01:14][%cal Ba6a5,Ba5a4][%mdl 32]} 19. c4 {[%emt 0:09:32]} b4 {[%emt 0:15:13]} 20. Rhf1 {[%emt 0:03:56]} a4 {[%emt 0:03:13]} 21. Rc1 {[%emt 0:05:46]} Bd8 {[%emt 0:07:26]} 22. fxe6 {[%emt 0:01:48]} fxe6 {[%emt 0:00:10]} 23. Nf3 {[%emt 0:04:40]} Rg8 {[%emt 0:08:57]} 24. h3 {[%emt 0:08:49]} Nxf3 {[%emt 0:07:09]} 25. Rxf3 {[%emt 0:04:16]} Qd4 {[%emt 0:03:44]} (25... Rg5 $5 {[%cal Rg5e5]}) 26. Qd2 {[%emt 0:13:51]} Qc5 {[%emt 0:00:21]} 27. g4 {[%emt 0:04:34]} Rf8 {[%emt 0:04:04]} (27... Rc7 $11) 28. Qf2 {[%emt 0:07:38]} (28. Be2 $14) 28... Qe5 $11 {[%emt 0:01:07]} 29. Ne2 {[%emt 0:03:34]} Qa5 {[%emt 0:05:45]} 30. Qd4 {[%emt 0:01:20]} Be7 {[%emt 0:00:21]} 31. Qe3 {[%emt 0:00:18]} Rc5 {[%emt 0:00:56]} 32. Nd4 {[%emt 0:00:58]} Re5 {[%emt 0:01:50]} 33. Qd2 {[%emt 0:01:01]} Qb6 {[%emt 0:00:41]} 34. Qf2 {[%emt 0:00:27]} Rc8 {[%emt 0:01:18]} 35. Nc2 {[%emt 0:00:54]} Rec5 {[%emt 0:01:05]} 36. Ne3 {[%emt 0:00:44]} Qb7 {[%emt 0:03:24]} 37. Ng2 {[%emt 0:00:49]} d5 {[%emt 0:00:40]} ({Better is} 37... Bc6 $17 38. Re1 b3) 38. exd5 {[%emt 0:00:34]} exd5 {[%emt 0:00:06]} 39. Re3 {[%emt 0:00:49]} Bd8 {[%emt 0:01:29][%cal Rd5c4]} (39... Bf8 $5 {[%cal Rf8h6]} 40. Qf4+ Qc7 $15) 40. Qf4+ {[%emt 0:00:52]} (40. Nf4 $11 {keeps the balance.}) 40... Ka8 {[%emt 0:02:02]} ({Black should play} 40... Bc7 $17 41. Qxf6 dxc4) 41. Re2 $15 {[%emt 0:30:47]} dxc4 {[%emt 0:31:20]} (41... b3 $15) 42. Bxc4 $2 {[%emt 0:00:00][%mdl 8192]} (42. Be4 $11 {and White has nothing to worry.} Bc6 43. Bf5) 42... f5 $19 {[%emt 0:00:00] [#] Threatens to win with ...fxg4.} 43. Ne3 {[%emt 0:00:00]} (43. g5 Bc6 44. Rce1 Bxg2 45. Be6) 43... fxg4 {[%emt 0:00:00]} 44. hxg4 {[%emt 0:00:00]} Bg5 {[%emt 0:00:00]} 45. Qd4 {[%emt 0:00:00]} Be8 {[%emt 0:00:00] This bishop pair is nice.} 46. Rec2 {[%emt 0:00:00]} Bxe3 {[%emt 0:00:00] Black mates.} ({Wrong is} 46... Bg6 $2 47. Nf5 Bxc1 48. Bd5 Qxd5 49. Qxd5+ Rxd5 50. Rxc8+ Kb7 51. Rxc1 $19) 47. Qxe3 {[%emt 0:00:00]} Bg6 $1 {[%emt 0:00:00][%csl LRc2,LRc4]} 48. b3 {[%emt 0:00:40]} Rxc4 {[%emt 0:00:00]} 49. bxc4 {[%emt 0:00:10]} b3 {[%emt 0:00:00]} 50. axb3 {[%emt 0:00:52]} Qxb3+ {[%emt 0:00:00]} 51. Qxb3 {[%emt 0:00:07]} axb3 {[%emt 0:00:00][%mdl 64] Pin.  Weighted Error Value: White=0.53/Black=0.13 (very precise)} 0-1

[Event "USA Championship Women 2022"]
[Site "Saint Louis"]
[Date "2022.10.09"]
[Round "5.2"]
[White "Tokhirjonova, Gulrukhbegim"]
[Black "Krush, Irina"]
[Result "0-1"]
[ECO "B62"]
[WhiteElo "2336"]
[BlackElo "2432"]
[Annotator "TA"]
[PlyCount "74"]
[EventDate "2022.09.05"]
[EventType "tourn"]
[EventCountry "USA"]
[SourceTitle "playchess.com"]
[Source "ChessBase"]
[SourceQuality "1"]
[TimeControl "40/5400+30:1800+30"]

{[%evp 12,74,33,-2,40,10,35,18,35,22,25,17,18,19,15,0,0,-75,-60,-137,-119,-142,-141,-134,-99,-127,-110,-185,-157,-364,-370,-362,-355,-460,-454,-377,-183,-849,-855,-783,-782,-960,-658,-636,-632,-578,-331,-410,-368,-373,-365,-432,-343,-538,-529,-29978,-29979,-29977,-29978,-29988,-29989,-29991,-29989,-29991,-29990]} 1. e4 {[%emt 0:06:53]} c5 {[%emt 0:00:16]} 2. Nf3 {[%emt 0:00:26]} d6 {[%emt 0:00:22]} 3. d4 {[%emt 0:00:33]} cxd4 {[%emt 0:00:14]} 4. Nxd4 {[%emt 0:00:19]} Nf6 {[%emt 0:00:10]} 5. Nc3 {[%emt 0:00:12]} Nc6 {[%emt 0:00:09]} 6. Bg5 {[%emt 0:02:06]} e6 {[%emt 0:00:23]} 7. Qd3 {[%emt 0:02:17]} Bd7 $1 {[%emt 0:01:51][%mdl 4] is now more promising than 7...a6. B62: Sicilian: Richter-Rauzer: 6...e6: Unusual White 7th moves.} 8. Be2 {[%emt 0:05:34]} a6 {[%emt 0:00:40]} 9. f4 {[%emt 0:01:31]} Be7 {[%emt 0:03:20] The position is equal.} 10. O-O-O {[%emt 0:04:20]} b5 {[%emt 0:05:20]} 11. Bf3 {[%emt 0:05:13]} Rc8 {[%emt 0:09:36] [#]} 12. Nxc6 $146 {[%emt 0:15:26]} ({Predecessor:} 12. Bxf6 Bxf6 13. Nxc6 Bxc6 14. Qxd6 Qxd6 15. Rxd6 Be7 16. Rd3 g5 17. g3 gxf4 18. gxf4 {1-0 (62) Paravyan,D (2629)-Mohite,R (2091) St Petersburg 2018}) 12... Bxc6 {[%emt 0:00:38]} 13. a3 {[%emt 0:02:00]} O-O {[%emt 0:10:29]} 14. g4 {[%emt 0:15:11]} (14. Bxf6 $11 {keeps the balance.} Bxf6 15. Qxd6) 14... Qc7 {[%emt 0:09:11]} 15. h4 {[%emt 0:06:23] [#]} ({Better is} 15. Bxf6 $15 Bxf6 16. Kb1 (16. Qxd6 $2 Qb6 $17)) 15... a5 $1 $17 {[%emt 0:02:37]} 16. Ne2 {[%emt 0:12:14] [#]} b4 $1 {[%emt 0:00:43][%cal Oc6b5] Strongly threatening ...Bb5!} 17. Nd4 {[%emt 0:01:39] Prevents Bb5.} Bd7 {[%emt 0:01:11]} 18. axb4 {[%emt 0:01:41]} axb4 {[%emt 0:00:03]} 19. Rhe1 {[%emt 0:00:54]} (19. Rhg1 $17) 19... h6 $19 {[%emt 0:04:56]} 20. Rh1 $2 {[%emt 0:08:55] This costs White the game.} (20. Kb1 $17) 20... e5 {[%emt 0:13:39]} ({Stronger than} 20... hxg5 21. hxg5 Qc4 22. gxf6 Bxf6 23. e5 Qxd3 24. Rxd3 dxe5 25. g5 Bxg5 26. fxg5 exd4 27. Rxd4 $11) 21. Nf5 {[%emt 0:01:00]} Bxf5 {[%emt 0:00:10]} 22. Bxf6 {[%emt 0:02:23]} Bxf6 {[%emt 0:01:05]} 23. exf5 {[%emt 0:01:02]} exf4 {[%emt 0:02:46]} (23... Qa7 $142 {Hoping for ...e4.} 24. g5 Qa1+ 25. Kd2 Qxb2) 24. Rh2 $2 {[%emt 0:00:58]} (24. g5 Rfe8 25. Rhe1 (25. gxf6 $2 Re3 $19) 25... Rxe1 26. Rxe1 hxg5 27. hxg5 Bxg5 28. Kb1) 24... Qa7 {[%emt 0:02:26][%cal Of6c3]} 25. Qb3 {[%emt 0:03:12] Inhibits Bc3.} Rfe8 {[%emt 0:04:34] ( -> ...Qa1+)} 26. Re2 {[%emt 0:00:35]} Re3 {[%emt 0:06:28]} 27. Rxe3 {[%emt 0:00:06]} fxe3 {[%emt 0:00:04][%cal Ra7a1]} 28. Kb1 {[%emt 0:00:07] Inhibits Qa1+.} Bxh4 {[%emt 0:00:44]} 29. Rxd6 {[%emt 0:00:32]} Qe7 {[%emt 0:01:58]} 30. Qd3 {[%emt 0:00:28]} Bf6 {[%emt 0:01:48] Inhibits Rd4. And now ...Qe5 would win.} 31. Rd5 {[%emt 0:00:11] Inhibits Qe5.} Re8 {[%emt 0:03:15]} 32. Be2 {[%emt 0:01:15]} (32. Qe2 $142) 32... Ra8 {[%emt 0:00:02] Threatens to win with ...Qa7.} 33. Rb5 {[%emt 0:00:52]} Qa7 {[%emt 0:00:36][%csl Ga8][%cal Ra7a1] Black mates.} 34. c3 {[%emt 0:00:20]} bxc3 {[%emt 0:00:51]} 35. Qd5 {[%emt 0:00:39]} cxb2 {[%emt 0:01:19]} 36. Bc4 {[%emt 0:00:31]} Qa1+ {[%emt 0:00:24]} 37. Kc2 {[%emt 0:00:01]} Qc1+ {[%emt 0:00:11] Weighted Error Value: White=0.77/Black=0.43} 0-1

[Event "USA Championship Women 2022"]
[Site "Saint Louis"]
[Date "2022.10.09"]
[Round "5.3"]
[White "Eswaran, Ashritha"]
[Black "Zatonskih, Anna"]
[Result "1-0"]
[ECO "B12"]
[WhiteElo "2365"]
[BlackElo "2368"]
[Annotator "TA"]
[PlyCount "49"]
[EventDate "2022.09.05"]
[EventType "tourn"]
[EventCountry "USA"]
[SourceTitle "playchess.com"]
[Source "ChessBase"]
[SourceQuality "1"]
[TimeControl "40/5400+30:1800+30"]

{[%evp 10,49,0,0,0,-7,0,12,0,0,0,0,36,21,58,47,89,79,212,205,215,206,285,280,276,217,204,206,208,211,364,375,365,364,364,333,419,412,418,413,404,382]} 1. e4 {[%emt 0:00:03]} c6 {[%emt 0:00:44]} 2. d4 {[%emt 0:01:19]} d5 {[%emt 0:00:06]} 3. e5 {[%emt 0:00:47]} Bf5 {[%emt 0:04:27]} 4. h4 {[%emt 0:01:39]} h6 {[%emt 0:05:41]} 5. Bd3 {[%emt 0:01:47]} Bxd3 {[%emt 0:03:19]} 6. Qxd3 {[%emt 0:00:07][%cal Oe5e6]} e6 {[%emt 0:00:07] B12: Caro-Kann: Advance Variation.} 7. h5 {[%emt 0:00:51]} Nd7 {[%emt 0:05:37]} 8. Ne2 {[%emt 0:02:14]} c5 {[%emt 0:01:40] The position is equal.} 9. c3 {[%emt 0:01:10]} Ne7 {[%emt 0:04:56] [#]} 10. O-O $146 {[%emt 0:01:08]} ({Predecessor:} 10. Nd2 Nc6 11. a3 Rc8 12. f4 Nb6 13. Nf3 Qd7 14. O-O Ne7 15. g4 Rg8 {0-1 (62) Wuestehube,H (1993)-Darr,S (2218) Muehlhausen 2007}) 10... Qc7 {[%emt 0:11:05]} 11. Na3 {[%emt 0:04:34][%cal Bb1a3,Ba3c2,Bc2e3,Be3f5,Bf5d6,Bd6f7,Bf7d8][%mdl 32] Strongly threatening Nb5.} a6 {[%emt 0:03:41] Against Nb5} 12. Nc2 {[%emt 0:00:33]} Nc6 {[%emt 0:21:52]} 13. f4 {[%emt 0:04:33][%cal Bf2f4,Bf4f5][%mdl 32]} f5 {[%emt 0:10:19] [#]} (13... cxd4 $16 14. cxd4 Rc8) 14. g4 $1 $18 {[%emt 0:02:56]} Ne7 {[%emt 0:00:37]} 15. Ne3 {[%emt 0:04:18]} fxg4 {[%emt 0:01:28] [#]} 16. f5 $1 {[%emt 0:01:02]} O-O-O {[%emt 0:00:59]} 17. Nf4 {[%emt 0:02:14]} exf5 {[%emt 0:05:55]} 18. Nxf5 {[%emt 0:02:16]} ({But not} 18. Nexd5 Nxd5 19. Nxd5 Qc6) 18... cxd4 {[%emt 0:03:17]} 19. cxd4 {[%emt 0:02:04]} Qb6 {[%emt 0:07:13]} (19... Nxf5 {was necessary.} 20. Qxf5 Qb6) 20. Nd6+ {[%emt 0:06:05]} ({Not} 20. Nxe7+ Bxe7 21. Nxd5 Qe6 $18) 20... Kb8 {[%emt 0:00:02] aiming for ...Nxe5.} 21. Nf7 {[%emt 0:00:10][%csl LRd8,LRh8]} Rg8 {[%emt 0:00:20]} 22. Nxd8 {[%emt 0:00:58]} Nxe5 {[%emt 0:01:21]} 23. Qb3 {[%emt 0:00:22] White is winning.} Qxb3 {[%emt 0:02:52]} 24. axb3 {[%emt 0:00:05]} Nf3+ {[%emt 0:00:08]} 25. Kg2 {[%emt 0:00:33] White took control after the opening.  Weighted Error Value: White=0.06 (flawless) /Black=0.36} 1-0

[Event "USA Championship Women 2022"]
[Site "Saint Louis"]
[Date "2022.10.09"]
[Round "5.4"]
[White "Morris-Suzuki, Sophie"]
[Black "Lee, Alice"]
[Result "1/2-1/2"]
[ECO "D46"]
[WhiteElo "2126"]
[BlackElo "2263"]
[Annotator "TA"]
[PlyCount "107"]
[EventDate "2022.09.05"]
[EventType "tourn"]
[EventCountry "USA"]
[SourceTitle "playchess.com"]
[Source "ChessBase"]
[SourceQuality "1"]
[TimeControl "40/5400+30:1800+30"]

{[%evp 21,107,0,0,0,8,13,14,4,17,12,0,0,0,0,8,10,6,4,10,0,0,0,23,14,18,-16,0,0,50,48,52,47,48,42,49,4,20,0,0,0,50,29,38,37,56,0,0,0,0,0,0,0,0,0,0,0,0,-25,0,-1120,0,0,0,0,0,0,0,0,0,0,0,0,0,0,0,0,0,0,0,0,0,0,0,0,0,0,0,0]} 1. d4 {[%emt 0:00:04]} d5 {[%emt 0:00:04]} 2. c4 {[%emt 0:00:17]} c6 {[%emt 0:00:08]} 3. Nf3 {[%emt 0:00:13]} Nf6 {[%emt 0:00:07]} 4. Nc3 {[%emt 0:00:16]} e6 {[%emt 0:02:57]} 5. e3 {[%emt 0:00:16]} Nbd7 {[%emt 0:00:05]} 6. Qc2 {[%emt 0:00:17]} Bd6 {[%emt 0:00:05]} 7. Bd3 {[%emt 0:00:27]} dxc4 {[%emt 0:00:07]} 8. Bxc4 {[%emt 0:00:12]} b5 {[%emt 0:00:07]} 9. Bd3 {[%emt 0:00:16]} O-O {[%emt 0:00:09]} 10. O-O {[%emt 0:00:24]} Bb7 {[%emt 0:00:06]} 11. e4 {[%emt 0:00:25]} e5 {[%emt 0:00:05]} 12. h3 {[%emt 0:00:12] D46: Semi-Slav: 5 e3 Nbd7 6 Bd3, Black avoids the Meran.} Re8 {[%emt 0:02:09]} 13. dxe5 {[%emt 0:01:56]} Nxe5 {[%emt 0:00:06]} 14. Nxe5 {[%emt 0:00:16]} Bxe5 {[%emt 0:00:05]} (14... Rxe5 15. f4 Rh5 16. e5 Bc5+ 17. Kh1 $16) 15. Be3 {[%emt 0:00:58]} a6 {[%emt 0:00:06][%cal Oc6c5]} 16. f4 {[%emt 0:09:30] 16.Rfd1 is the modern continuation.} Bxc3 {[%emt 0:00:13]} 17. bxc3 {[%emt 0:00:10]} c5 $1 {[%emt 0:00:08] And now ...c4 would win.} 18. e5 {[%emt 0:01:08]} ({Much worse is} 18. Bxc5 Rc8 19. Bd4 Bxe4 $15) 18... c4 {[%emt 0:00:06]} 19. Be2 $36 {[%emt 0:15:22][%mdl 2048] White has good play.} Be4 {[%emt 0:00:26]} 20. Qb2 {[%emt 0:06:08] is the legacy move (20.Qc1).} Nd5 {[%emt 0:02:44]} 21. Bd4 {[%emt 0:00:11]} Qh4 {[%emt 0:07:32]} 22. Qd2 {[%emt 0:00:26]} Rad8 {[%emt 0:02:16] [#]} 23. f5 $146 {[%emt 0:16:33]} ({Predecessor:} 23. a4 Qh6 24. axb5 axb5 25. Rf2 Ne7 26. Qe3 f5 27. Qg3 Nd5 28. Bf3 Qg6 29. Qh4 Bxf3 30. Rxf3 {½-½ (45) Volovici,D (2350)-Sferle,M (2497) ICCF email 2019}) 23... Ne7 {[%emt 0:12:36]} 24. Bg4 {[%emt 0:03:20]} h5 {[%emt 0:08:50]} ({Better is} 24... Bd3 $11 25. Rf3 Nc6) 25. Qf4 $14 {[%emt 0:02:15]} hxg4 {[%emt 0:10:36]} 26. Qxe4 {[%emt 0:00:35] Black must now prevent Rf4.} Nd5 {[%emt 0:00:40] Against Rf4} 27. hxg4 {[%emt 0:02:20]} b4 {[%emt 0:10:14]} 28. Rf3 {[%emt 0:15:34] Strongly threatening Rh3.} Nf6 {[%emt 0:01:50]} 29. Qf4 {[%emt 0:05:13]} Nd5 {[%emt 0:00:17]} 30. Qe4 {[%emt 0:05:06] Hoping for Rh3.} bxc3 {[%emt 0:13:29]} (30... Nf6 $11 31. Qf4 Nd5 32. Qe4) 31. Bxc3 {[%emt 0:04:00]} Nxc3 {[%emt 0:00:08][%mdl 64] [#] Remove Defender} 32. Rxc3 {[%emt 0:00:11]} Rd2 {[%emt 0:00:34][%cal Oe8e5]} 33. Qe1 {[%emt 0:02:56]} (33. Rf1 $14) 33... Qd8 $11 {[%emt 0:02:32]} 34. Kh1 {[%emt 0:09:05]} Qd5 {[%emt 0:05:10][%csl Gd2,LRe5,LRg2][%cal Rd5g2]} 35. Qg3 {[%emt 0:00:02]} ({Much weaker is} 35. Qf1 Rxe5 36. Rb1 Re8 $17) 35... Qd4 {[%emt 0:12:17]} 36. Rac1 {[%emt 0:01:08]} Rd3 {[%emt 0:00:08]} 37. Rxd3 {[%emt 0:00:13]} cxd3 {[%emt 0:00:03][%mdl 4096] Endgame KQR-KQR} 38. Rd1 {[%emt 0:00:15]} d2 {[%emt 0:00:03] ...g5 is the strong threat.} 39. g5 {[%emt 0:00:58]} (39. e6 $5) 39... Rc8 {[%emt 0:01:53]} 40. g6 $2 {[%emt 0:00:43][%mdl 8192] [#]} (40. e6 $11) 40... Rc3 $2 {[%emt 0:04:32]} (40... Rc1 $1 $19 {[%cal Rc1d1]} 41. gxf7+ Kxf7 42. Qb3+ Ke8 43. Qg8+ Kd7 44. Qf7+ Kc6 45. Qe6+ Kc7 46. Qf7+ Qd7) 41. gxf7+ {[%emt 0:25:14] The position is equal.} Kxf7 {[%emt 0:09:24]} 42. e6+ {[%emt 0:03:16]} Kf8 {[%emt 0:11:55]} 43. e7+ {[%emt 0:02:36]} Kxe7 {[%emt 0:00:58]} 44. Qg5+ {[%emt 0:00:08]} Kf7 {[%emt 0:02:07]} 45. Qxd2 {[%emt 0:00:38]} Qxd2 {[%emt 0:00:25]} 46. Rxd2 {[%emt 0:00:02] KR-KR} Ra3 {[%emt 0:02:28]} 47. g4 {[%emt 0:01:39]} Ra4 {[%emt 0:00:59]} 48. g5 {[%emt 0:00:26]} Rh4+ {[%emt 0:00:22]} 49. Kg1 {[%emt 0:00:27]} Rg4+ {[%emt 0:00:08]} 50. Rg2 {[%emt 0:00:03]} Rf4 {[%emt 0:00:08]} 51. Rf2 {[%emt 0:00:42]} Rg4+ {[%emt 0:00:05]} 52. Rg2 {[%emt 0:00:05]} Rf4 {[%emt 0:00:03]} 53. Rf2 {[%emt 0:00:11]} Rg4+ {[%emt 0:00:18]} 54. Rg2 {[%emt 0:00:32] Weighted Error Value: White=0.23 (precise) /Black=0.27 (precise)} 1/2-1/2